[Event "*** Titled Tuesday Blitz"]
[Site "Chess.com"]
[Date "2020.11.24"]
[Round "8"]
[White "queen_iryna"]
[Black "SanchezKelvin"]
[Result "1/2-1/2"]
[WhiteElo "2274"]
[BlackElo "2449"]
[TimeControl "180+1"]
[EndTime "11:46:20 PST"]
[Termination "Game drawn by repetition"]

1. e4 {[%clk 0:03:00.9]} 1... c5 {[%clk 0:02:59.6]} 2. Nf3 {[%clk 0:03:01]} 2...
d6 {[%clk 0:02:59.4]} 3. Bb5+ {[%clk 0:03:00.5]} 3... Nd7 {[%clk 0:02:58.4]} 4.
O-O {[%clk 0:03:00.6]} 4... Nf6 {[%clk 0:02:54.8]} 5. Re1 {[%clk 0:03:00]} 5...
a6 {[%clk 0:02:50.2]} 6. Bf1 {[%clk 0:02:55.4]} 6... b5 {[%clk 0:02:48.9]} 7. c3
{[%clk 0:02:24.8]} 7... Bb7 {[%clk 0:02:47.7]} 8. d3 {[%clk 0:02:24.8]} 8... g6
{[%clk 0:02:24.3]} 9. Bg5 {[%clk 0:02:22.9]} 9... Bg7 {[%clk 0:02:23.6]} 10. a4
{[%clk 0:02:17.3]} 10... O-O {[%clk 0:02:19.4]} 11. Na3 {[%clk 0:02:00.9]} 11...
Bc6 {[%clk 0:02:15.5]} 12. Qd2 {[%clk 0:01:53]} 12... bxa4 {[%clk 0:02:07.9]}
13. Nc4 {[%clk 0:01:49.2]} 13... Qc7 {[%clk 0:01:52.9]} 14. Bh6 {[%clk
0:01:39.4]} 14... e5 {[%clk 0:01:47]} 15. Bxg7 {[%clk 0:01:34.3]} 15... Kxg7
{[%clk 0:01:46.8]} 16. g3 {[%clk 0:01:21.2]} 16... Nb6 {[%clk 0:01:34.8]} 17.
Nxb6 {[%clk 0:01:18.2]} 17... Qxb6 {[%clk 0:01:33.3]} 18. Nh4 {[%clk 0:01:18.3]}
18... Kh8 {[%clk 0:01:30.2]} 19. Qg5 {[%clk 0:01:16.3]} 19... Ng8 {[%clk
0:01:28.6]} 20. Rab1 {[%clk 0:01:07.9]} 20... Qd8 {[%clk 0:01:24.4]} 21. Qe3
{[%clk 0:00:57.2]} 21... f5 {[%clk 0:01:02.4]} 22. Ng2 {[%clk 0:00:52.5]} 22...
Nf6 {[%clk 0:00:55.8]} 23. exf5 {[%clk 0:00:47.9]} 23... gxf5 {[%clk 0:00:55.3]}
24. d4 {[%clk 0:00:46.8]} 24... cxd4 {[%clk 0:00:53.7]} 25. cxd4 {[%clk
0:00:47]} 25... e4 {[%clk 0:00:49.9]} 26. Nf4 {[%clk 0:00:40.3]} 26... Nd5
{[%clk 0:00:43.7]} 27. Nxd5 {[%clk 0:00:33.5]} 27... Bxd5 {[%clk 0:00:43.2]} 28.
Qa3 {[%clk 0:00:19.2]} 28... Qd7 {[%clk 0:00:38.5]} 29. Rbc1 {[%clk 0:00:17]}
29... Rab8 {[%clk 0:00:37.8]} 30. Bc4 {[%clk 0:00:16.6]} 30... Bxc4 {[%clk
0:00:35.5]} 31. Rxc4 {[%clk 0:00:17.5]} 31... Rb3 {[%clk 0:00:31.6]} 32. Qxa4
{[%clk 0:00:17.5]} 32... Qxa4 {[%clk 0:00:30.6]} 33. Rxa4 {[%clk 0:00:18.4]}
33... Rxb2 {[%clk 0:00:27.6]} 34. Rxa6 {[%clk 0:00:18.1]} 34... Rd8 {[%clk
0:00:28]} 35. Rc1 {[%clk 0:00:17.3]} 35... Rb7 {[%clk 0:00:16.9]} 36. Rcc6
{[%clk 0:00:16.4]} 36... Rbd7 {[%clk 0:00:16.9]} 37. Ra5 {[%clk 0:00:13.8]}
37... Rf8 {[%clk 0:00:15.7]} 38. Raa6 {[%clk 0:00:13.4]} 38... Rf6 {[%clk
0:00:15]} 39. Kg2 {[%clk 0:00:12.4]} 39... Kg7 {[%clk 0:00:15]} 40. Kf1 {[%clk
0:00:10.9]} 40... Kf7 {[%clk 0:00:15.1]} 41. Ke2 {[%clk 0:00:11.2]} 41... Ke6
{[%clk 0:00:15]} 42. Ke3 {[%clk 0:00:11.2]} 42... Rh6 {[%clk 0:00:13.3]} 43. h4
{[%clk 0:00:10.7]} 43... Rg6 {[%clk 0:00:13.7]} 44. Rcb6 {[%clk 0:00:08.3]}
44... Rf6 {[%clk 0:00:13.9]} 45. Rb5 {[%clk 0:00:08.4]} 45... Kf7 {[%clk
0:00:13.1]} 46. Rbb6 {[%clk 0:00:08.2]} 46... Ke6 {[%clk 0:00:13.3]} 47. Rb5
{[%clk 0:00:08.5]} 47... Kf7 {[%clk 0:00:13.4]} 48. Rbb6 {[%clk 0:00:08.7]}
48... Ke6 {[%clk 0:00:13.8]} 1/2-1/2

[Event "*** Titled Tuesday Blitz"]
[Site "Chess.com"]
[Date "2020.11.24"]
[Round "8"]
[White "enriquetejedor"]
[Black "Training_Day"]
[Result "0-1"]
[WhiteElo "2473"]
[BlackElo "2369"]
[TimeControl "180+1"]
[EndTime "11:46:24 PST"]
[Termination "Training_Day won by checkmate"]

1. f4 {[%clk 0:02:52.1]} 1... d5 {[%clk 0:02:24.6]} 2. Nf3 {[%clk 0:02:26.2]}
2... g6 {[%clk 0:02:24.6]} 3. d3 {[%clk 0:02:24.6]} 3... Bg7 {[%clk 0:02:23.4]}
4. e4 {[%clk 0:02:25.5]} 4... dxe4 {[%clk 0:02:21]} 5. dxe4 {[%clk 0:02:26.4]}
5... Qxd1+ {[%clk 0:02:19.2]} 6. Kxd1 {[%clk 0:02:27.3]} 6... Nc6 {[%clk
0:02:06.4]} 7. Bb5 {[%clk 0:02:20]} 7... Bd7 {[%clk 0:02:03.3]} 8. Ke2 {[%clk
0:02:19.1]} 8... a6 {[%clk 0:02:00.4]} 9. Bxc6 {[%clk 0:02:17.6]} 9... Bxc6
{[%clk 0:01:59.9]} 10. Nbd2 {[%clk 0:02:14.3]} 10... O-O-O {[%clk 0:01:58.1]}
11. Re1 {[%clk 0:02:00.2]} 11... Nf6 {[%clk 0:01:44.5]} 12. Kf2 {[%clk
0:01:47.7]} 12... Nd7 {[%clk 0:01:37.8]} 13. Rb1 {[%clk 0:01:35.3]} 13... e5
{[%clk 0:01:25.6]} 14. Nc4 {[%clk 0:01:20.6]} 14... exf4 {[%clk 0:01:09.5]} 15.
Bxf4 {[%clk 0:01:21.5]} 15... Rhe8 {[%clk 0:01:07.3]} 16. Nfd2 {[%clk
0:00:50.9]} 16... Nc5 {[%clk 0:01:00.4]} 17. e5 {[%clk 0:00:42.4]} 17... Ne6
{[%clk 0:00:52.1]} 18. Be3 {[%clk 0:00:40.9]} 18... h6 {[%clk 0:00:37]} 19. Rbd1
{[%clk 0:00:30.3]} 19... Nd4 {[%clk 0:00:36.3]} 20. c3 {[%clk 0:00:25.5]} 20...
Nc2 {[%clk 0:00:35.4]} 21. Re2 {[%clk 0:00:25.9]} 21... Nxe3 {[%clk 0:00:27.1]}
22. Rxe3 {[%clk 0:00:26.8]} 22... Bf8 {[%clk 0:00:26.8]} 23. b4 {[%clk
0:00:19.3]} 23... b5 {[%clk 0:00:17.3]} 24. Na5 {[%clk 0:00:16.9]} 24... Ba8
{[%clk 0:00:16.1]} 25. Nab3 {[%clk 0:00:16.8]} 25... Rd5 {[%clk 0:00:13.2]} 26.
Rde1 {[%clk 0:00:14.6]} 26... c5 {[%clk 0:00:06.9]} 27. Nf3 {[%clk 0:00:06.9]}
27... cxb4 {[%clk 0:00:06]} 28. cxb4 {[%clk 0:00:07.8]} 28... Bxb4 {[%clk
0:00:05.3]} 29. Rc1+ {[%clk 0:00:08.3]} 29... Kb8 {[%clk 0:00:05.6]} 30. Kg3
{[%clk 0:00:05.2]} 30... Be7 {[%clk 0:00:05.6]} 31. Rec3 {[%clk 0:00:04.7]}
31... Bf8 {[%clk 0:00:05.3]} 32. Rc7 {[%clk 0:00:04.7]} 32... Bg7 {[%clk
0:00:04.2]} 33. Rxf7 {[%clk 0:00:03.4]} 33... Bxe5+ {[%clk 0:00:03.8]} 34. Nxe5
{[%clk 0:00:04.3]} 34... Rdxe5 {[%clk 0:00:04.3]} 35. Na5 {[%clk 0:00:03.6]}
35... R5e7 {[%clk 0:00:03.7]} 36. Rf6 {[%clk 0:00:02.9]} 36... Re6 {[%clk
0:00:03.8]} 37. Rf7 {[%clk 0:00:03.4]} 37... R6e7 {[%clk 0:00:04.1]} 38. Rxe7
{[%clk 0:00:03.9]} 38... Rxe7 {[%clk 0:00:03.4]} 39. h3 {[%clk 0:00:03.8]} 39...
g5 {[%clk 0:00:03]} 40. Kh2 {[%clk 0:00:03.2]} 40... Re2 {[%clk 0:00:02.9]} 41.
Kg3 {[%clk 0:00:02.2]} 41... Rxg2# {[%clk 0:00:02.6]} 0-1

[Event "*** Titled Tuesday Blitz"]
[Site "Chess.com"]
[Date "2020.11.24"]
[Round "8"]
[White "parintele_chess"]
[Black "HajduIstvanCM"]
[Result "1/2-1/2"]
[WhiteElo "2184"]
[BlackElo "1709"]
[TimeControl "180+1"]
[EndTime "11:46:25 PST"]
[Termination "Game drawn by repetition"]

1. e4 {[%clk 0:02:59.3]} 1... Nc6 {[%clk 0:02:59.4]} 2. d4 {[%clk 0:02:58.6]}
2... e5 {[%clk 0:02:59.8]} 3. d5 {[%clk 0:02:58.3]} 3... Nce7 {[%clk 0:02:59.8]}
4. Nf3 {[%clk 0:02:55.7]} 4... Ng6 {[%clk 0:02:59.7]} 5. c4 {[%clk 0:02:50.7]}
5... Bc5 {[%clk 0:02:58.6]} 6. a3 {[%clk 0:02:45.9]} 6... a5 {[%clk 0:02:57]} 7.
Bg5 {[%clk 0:02:42.4]} 7... Nf6 {[%clk 0:02:55.5]} 8. Nc3 {[%clk 0:02:40.5]}
8... h6 {[%clk 0:02:53.9]} 9. Be3 {[%clk 0:02:28.8]} 9... Bxe3 {[%clk
0:02:52.6]} 10. fxe3 {[%clk 0:02:29.7]} 10... O-O {[%clk 0:02:51.9]} 11. Be2
{[%clk 0:02:27.4]} 11... d6 {[%clk 0:02:47.9]} 12. O-O {[%clk 0:02:26.3]} 12...
Bd7 {[%clk 0:02:46.5]} 13. Qe1 {[%clk 0:02:26.2]} 13... Qe7 {[%clk 0:02:30.7]}
14. Nh4 {[%clk 0:02:24]} 14... Nxh4 {[%clk 0:02:25.1]} 15. Qxh4 {[%clk
0:02:24.9]} 15... Nxd5 {[%clk 0:02:16.8]} 16. Qg3 {[%clk 0:02:11.1]} 16... Nxc3
{[%clk 0:02:13.5]} 17. bxc3 {[%clk 0:02:12]} 17... Qg5 {[%clk 0:02:01]} 18. Qxg5
{[%clk 0:01:55.2]} 18... hxg5 {[%clk 0:01:59.7]} 19. Rab1 {[%clk 0:01:55]} 19...
b6 {[%clk 0:01:57.5]} 20. h3 {[%clk 0:01:45.2]} 20... Be6 {[%clk 0:01:54.6]} 21.
g4 {[%clk 0:01:43.3]} 21... f6 {[%clk 0:01:49.5]} 22. Kg2 {[%clk 0:01:40.9]}
22... Kf7 {[%clk 0:01:43.7]} 23. Kg3 {[%clk 0:01:40.2]} 23... Rh8 {[%clk
0:01:42.5]} 24. Rh1 {[%clk 0:01:34.4]} 24... Rh4 {[%clk 0:01:40.4]} 25. Rbd1
{[%clk 0:01:29]} 25... Ke7 {[%clk 0:01:37.5]} 26. Rd5 {[%clk 0:01:27.9]} 26...
Bxd5 {[%clk 0:01:33.3]} 27. cxd5 {[%clk 0:01:28.8]} 27... Kf7 {[%clk 0:01:25.2]}
28. Bb5 {[%clk 0:01:27.7]} 28... Ke7 {[%clk 0:01:21.8]} 29. Rh2 {[%clk
0:01:25.7]} 29... Rah8 {[%clk 0:01:12.2]} 30. Bc6 {[%clk 0:01:21]} 30... Rb8
{[%clk 0:01:04.5]} 31. a4 {[%clk 0:01:15.4]} 31... Rbh8 {[%clk 0:01:01.5]} 32.
Bb5 {[%clk 0:01:14.8]} 32... Rb8 {[%clk 0:01:00.7]} 33. Bf1 {[%clk 0:01:13.7]}
33... Rbh8 {[%clk 0:00:59]} 34. Rb2 {[%clk 0:01:11.8]} 34... Rb8 {[%clk
0:00:55.9]} 35. Rb1 {[%clk 0:01:05.3]} 35... Kf7 {[%clk 0:00:53.3]} 36. Rc1
{[%clk 0:01:01]} 36... Ke7 {[%clk 0:00:53.7]} 37. Rc2 {[%clk 0:01:00.7]} 37...
Kd7 {[%clk 0:00:52.8]} 38. Bb5+ {[%clk 0:01:00.5]} 38... Ke7 {[%clk 0:00:53]}
39. Rd2 {[%clk 0:00:59.6]} 39... Rhh8 {[%clk 0:00:51.5]} 40. Rh2 {[%clk
0:00:58.9]} 40... Rh4 {[%clk 0:00:51.6]} 41. Rh1 {[%clk 0:00:58.8]} 41... Rbh8
{[%clk 0:00:51.3]} 42. Bf1 {[%clk 0:00:56.8]} 42... Rb8 {[%clk 0:00:50]} 43. Rh2
{[%clk 0:00:55.6]} 43... Rbh8 {[%clk 0:00:50.2]} 44. Rc2 {[%clk 0:00:55]} 44...
Rb8 {[%clk 0:00:48.6]} 45. Ba6 {[%clk 0:00:53.9]} 45... Rbh8 {[%clk 0:00:47.7]}
46. Rh2 {[%clk 0:00:53.2]} 46... Rb8 {[%clk 0:00:46.9]} 47. Bb5 {[%clk
0:00:52.9]} 47... Rbh8 {[%clk 0:00:46]} 48. c4 {[%clk 0:00:52.9]} 48... Rb8
{[%clk 0:00:45.5]} 49. Bc6 {[%clk 0:00:52.6]} 49... Rbh8 {[%clk 0:00:44.3]} 50.
Bb7 {[%clk 0:00:52.5]} 50... R8h7 {[%clk 0:00:43.6]} 51. Bc8 {[%clk 0:00:51.8]}
51... Rh8 {[%clk 0:00:43.7]} 52. Bf5 {[%clk 0:00:48.5]} 52... R8h6 {[%clk
0:00:43.2]} 53. Rh1 {[%clk 0:00:47.8]} 53... Rh8 {[%clk 0:00:43.3]} 54. Kg2
{[%clk 0:00:47.3]} 54... R8h6 {[%clk 0:00:43.6]} 55. Kg3 {[%clk 0:00:46]} 55...
Rh8 {[%clk 0:00:43.9]} 56. Bg6 {[%clk 0:00:46.2]} 56... R8h6 {[%clk 0:00:42.4]}
57. Bh5 {[%clk 0:00:46.3]} 57... g6 {[%clk 0:00:41]} 58. Bxg6 {[%clk 0:00:45.6]}
58... Rxg6 {[%clk 0:00:39.9]} 59. Rf1 {[%clk 0:00:46]} 59... Rg8 {[%clk
0:00:37.8]} 60. Rf2 {[%clk 0:00:45.6]} 60... Rc8 {[%clk 0:00:37.1]} 61. Rb2
{[%clk 0:00:44.4]} 61... Rch8 {[%clk 0:00:34.2]} 62. Rh2 {[%clk 0:00:42.9]}
62... Rc8 {[%clk 0:00:32.7]} 63. Rb2 {[%clk 0:00:42.7]} 63... Rch8 {[%clk
0:00:30.5]} 64. Rh2 {[%clk 0:00:42.4]} 64... Rc8 {[%clk 0:00:29]} 65. Rb2 {[%clk
0:00:42.3]} 1/2-1/2

[Event "*** Titled Tuesday Blitz"]
[Site "Chess.com"]
[Date "2020.11.24"]
[Round "8"]
[White "amatatanav"]
[Black "Deepweb2020"]
[Result "0-1"]
[WhiteElo "2385"]
[BlackElo "2281"]
[TimeControl "180+1"]
[EndTime "11:46:26 PST"]
[Termination "Deepweb2020 won on time"]

1. e4 {[%clk 0:03:00.9]} 1... e5 {[%clk 0:02:57.1]} 2. Bc4 {[%clk 0:03:00]} 2...
Nf6 {[%clk 0:02:54]} 3. d3 {[%clk 0:02:59.8]} 3... Bc5 {[%clk 0:02:52.2]} 4. Nc3
{[%clk 0:02:57.1]} 4... c6 {[%clk 0:02:51.7]} 5. f4 {[%clk 0:02:47.4]} 5... d5
{[%clk 0:02:45.4]} 6. exd5 {[%clk 0:02:45.2]} 6... O-O {[%clk 0:02:43.4]} 7.
fxe5 {[%clk 0:02:30]} 7... Ng4 {[%clk 0:02:42.2]} 8. d4 {[%clk 0:02:25.6]} 8...
Nxe5 {[%clk 0:02:41.2]} 9. dxc5 {[%clk 0:02:08.5]} 9... Qh4+ {[%clk 0:02:21]}
10. g3 {[%clk 0:02:05.6]} 10... Qxc4 {[%clk 0:02:18.6]} 11. Nf3 {[%clk
0:01:21.1]} 11... Bg4 {[%clk 0:01:29.3]} 12. Nxe5 {[%clk 0:00:57.7]} 12... Re8
{[%clk 0:01:29.1]} 13. Qd3 {[%clk 0:00:24]} 13... Rxe5+ {[%clk 0:01:20]} 14. Kf2
{[%clk 0:00:24.2]} 14... Qxc5+ {[%clk 0:00:57.7]} 15. Be3 {[%clk 0:00:23.9]}
15... Qe7 {[%clk 0:00:38.9]} 16. Rhe1 {[%clk 0:00:21.8]} 16... g5 {[%clk
0:00:20.7]} 17. Bd4 {[%clk 0:00:19.1]} 17... Rf5+ {[%clk 0:00:16.2]} 18. Kg1
{[%clk 0:00:18.8]} 18... Qd7 {[%clk 0:00:14.3]} 19. Ne4 {[%clk 0:00:15.8]} 19...
Qd8 {[%clk 0:00:07.8]} 20. h3 {[%clk 0:00:09.5]} 20... Bxh3 {[%clk 0:00:06.9]}
21. Nf2 {[%clk 0:00:09.7]} 21... Rxd5 {[%clk 0:00:03.1]} 22. Nxh3 {[%clk
0:00:06.8]} 22... Rxd4 {[%clk 0:00:03.3]} 23. Re8+ {[%clk 0:00:07]} 23... Qxe8
{[%clk 0:00:03.6]} 24. Qxd4 {[%clk 0:00:07.6]} 24... Nd7 {[%clk 0:00:04.2]} 25.
Nxg5 {[%clk 0:00:07.5]} 25... Qe5 {[%clk 0:00:03.3]} 26. Qxe5 {[%clk 0:00:06.1]}
26... Nxe5 {[%clk 0:00:04.2]} 27. Rd1 {[%clk 0:00:05.8]} 27... f6 {[%clk
0:00:04.3]} 28. Ne4 {[%clk 0:00:05.8]} 28... Kf7 {[%clk 0:00:04.3]} 29. Rd6
{[%clk 0:00:05.8]} 29... Ng4 {[%clk 0:00:01.9]} 30. Rd7+ {[%clk 0:00:05.9]}
30... Kg6 {[%clk 0:00:01.9]} 31. Rxb7 {[%clk 0:00:06.8]} 31... Re8 {[%clk
0:00:02.2]} 32. Nd6 {[%clk 0:00:06]} 32... Re2 {[%clk 0:00:02.7]} 33. c4 {[%clk
0:00:05.5]} 33... Rc2 {[%clk 0:00:02.8]} 34. a4 {[%clk 0:00:03.8]} 34... h5
{[%clk 0:00:03.4]} 35. a5 {[%clk 0:00:03.5]} 35... h4 {[%clk 0:00:03.8]} 36.
gxh4 {[%clk 0:00:03.7]} 36... f5 {[%clk 0:00:04.4]} 37. h5+ {[%clk 0:00:04.1]}
37... Kg5 {[%clk 0:00:04.2]} 38. h6 {[%clk 0:00:03.9]} 38... Kf4 {[%clk
0:00:03.1]} 39. h7 {[%clk 0:00:03.9]} 39... Kf3 {[%clk 0:00:02.9]} 0-1

[Event "*** Titled Tuesday Blitz"]
[Site "Chess.com"]
[Date "2020.11.24"]
[Round "8"]
[White "GAusal"]
[Black "reniite"]
[Result "1-0"]
[WhiteElo "2031"]
[BlackElo "1954"]
[TimeControl "180+1"]
[EndTime "11:46:27 PST"]
[Termination "GAusal won by resignation"]

1. d4 {[%clk 0:03:00.9]} 1... Nf6 {[%clk 0:02:59.9]} 2. Bf4 {[%clk 0:02:59.6]}
2... e6 {[%clk 0:03:00.5]} 3. Nf3 {[%clk 0:02:59.4]} 3... d5 {[%clk 0:03:01.4]}
4. e3 {[%clk 0:02:59.4]} 4... Bd6 {[%clk 0:03:02]} 5. Ne5 {[%clk 0:02:58.9]}
5... c5 {[%clk 0:03:01.6]} 6. c3 {[%clk 0:02:58.1]} 6... Nc6 {[%clk 0:03:00.7]}
7. Bd3 {[%clk 0:02:57.4]} 7... Qc7 {[%clk 0:03:00.4]} 8. Nxc6 {[%clk 0:02:26]}
8... Bxf4 {[%clk 0:02:53.6]} 9. dxc5 {[%clk 0:01:52.2]} 9... bxc6 {[%clk
0:02:49.2]} 10. exf4 {[%clk 0:01:50.5]} 10... Qxf4 {[%clk 0:02:50.1]} 11. O-O
{[%clk 0:01:47.6]} 11... O-O {[%clk 0:02:25]} 12. Nd2 {[%clk 0:01:42.3]} 12...
e5 {[%clk 0:02:19.4]} 13. Be2 {[%clk 0:01:26.6]} 13... Rb8 {[%clk 0:01:53.8]}
14. b4 {[%clk 0:01:23.4]} 14... Bf5 {[%clk 0:01:30.4]} 15. g3 {[%clk 0:01:19.3]}
15... Qh6 {[%clk 0:01:27.7]} 16. Bf3 {[%clk 0:01:18]} 16... Bd3 {[%clk
0:00:49.9]} 17. Re1 {[%clk 0:01:16.7]} 17... e4 {[%clk 0:00:50.5]} 18. Bg2
{[%clk 0:01:16.2]} 18... Nd7 {[%clk 0:00:49.3]} 19. Nxe4 {[%clk 0:01:13.9]}
19... dxe4 {[%clk 0:00:46.3]} 20. Bxe4 {[%clk 0:01:12.6]} 20... Bxe4 {[%clk
0:00:46.2]} 21. Rxe4 {[%clk 0:01:12.3]} 21... Nf6 {[%clk 0:00:45]} 22. Rh4
{[%clk 0:01:03.6]} 22... Qg6 {[%clk 0:00:45.5]} 23. Qd6 {[%clk 0:00:51.6]} 23...
Nd5 {[%clk 0:00:42.2]} 24. Qxg6 {[%clk 0:00:48.5]} 24... hxg6 {[%clk 0:00:43.1]}
25. Rc1 {[%clk 0:00:45.7]} 25... Rfe8 {[%clk 0:00:43.1]} 26. a3 {[%clk 0:00:44]}
26... f5 {[%clk 0:00:42.1]} 27. Rd4 {[%clk 0:00:42.6]} 27... Nf6 {[%clk
0:00:41.4]} 28. Rd6 {[%clk 0:00:42.2]} 28... Rbc8 {[%clk 0:00:41.8]} 29. Rcd1
{[%clk 0:00:40]} 29... Kf7 {[%clk 0:00:41.3]} 30. c4 {[%clk 0:00:39.4]} 30...
Re2 {[%clk 0:00:40.9]} 31. R1d2 {[%clk 0:00:38.2]} 31... Rxd2 {[%clk 0:00:40.9]}
32. Rxd2 {[%clk 0:00:37.2]} 32... Ke7 {[%clk 0:00:41.6]} 33. Re2+ {[%clk
0:00:36.9]} 33... Kd7 {[%clk 0:00:40.9]} 34. f3 {[%clk 0:00:36.7]} 34... Rb8
{[%clk 0:00:36]} 35. Rd2+ {[%clk 0:00:35.6]} 35... Ke6 {[%clk 0:00:35.8]} 36.
Rd6+ {[%clk 0:00:34.4]} 36... Ke7 {[%clk 0:00:36.3]} 37. Rxc6 {[%clk 0:00:34.5]}
37... Nd7 {[%clk 0:00:36.9]} 38. Rc7 {[%clk 0:00:33.8]} 38... Kd8 {[%clk
0:00:36.7]} 39. Rxa7 {[%clk 0:00:33.1]} 39... Ne5 {[%clk 0:00:37.2]} 40. Rxg7
{[%clk 0:00:27]} 40... Nxc4 {[%clk 0:00:36.9]} 41. Rxg6 {[%clk 0:00:26.6]} 41...
Nxa3 {[%clk 0:00:37.1]} 42. Rg8+ {[%clk 0:00:24.3]} 42... Kc7 {[%clk 0:00:37.2]}
43. Rxb8 {[%clk 0:00:24.1]} 43... Kxb8 {[%clk 0:00:37.5]} 44. h4 {[%clk
0:00:24.6]} 44... Nc4 {[%clk 0:00:38.1]} 45. Kf2 {[%clk 0:00:23.9]} 45... Kc7
{[%clk 0:00:37.9]} 46. h5 {[%clk 0:00:22.4]} 46... Ne5 {[%clk 0:00:37.9]} 47. h6
{[%clk 0:00:21.1]} 47... Kc6 {[%clk 0:00:37.8]} 48. Ke3 {[%clk 0:00:20.8]} 48...
Ng6 {[%clk 0:00:37.3]} 49. Kd4 {[%clk 0:00:18.9]} 49... Kb5 {[%clk 0:00:36.7]}
50. Kd5 {[%clk 0:00:18.5]} 50... Kxb4 {[%clk 0:00:36.1]} 51. Kd6 {[%clk
0:00:18.8]} 51... f4 {[%clk 0:00:34.3]} 52. gxf4 {[%clk 0:00:17.3]} 52... Nxf4
{[%clk 0:00:34.8]} 53. c6 {[%clk 0:00:17]} 53... Ng6 {[%clk 0:00:26.8]} 54. c7
{[%clk 0:00:16.7]} 1-0

[Event "*** Titled Tuesday Blitz"]
[Site "Chess.com"]
[Date "2020.11.24"]
[Round "8"]
[White "Sanyura"]
[Black "PowerThinking2650"]
[Result "0-1"]
[WhiteElo "2516"]
[BlackElo "2391"]
[TimeControl "180+1"]
[EndTime "11:46:28 PST"]
[Termination "PowerThinking2650 won on time"]

1. e4 {[%clk 0:01:25.7]} 1... e5 {[%clk 0:02:59.2]} 2. Nf3 {[%clk 0:01:25.5]}
2... Nc6 {[%clk 0:02:59.2]} 3. Bb5 {[%clk 0:01:21.6]} 3... a6 {[%clk 0:02:59]}
4. Ba4 {[%clk 0:01:21.3]} 4... Nf6 {[%clk 0:02:58.4]} 5. O-O {[%clk 0:01:20.1]}
5... Be7 {[%clk 0:02:58.8]} 6. Re1 {[%clk 0:01:19.3]} 6... b5 {[%clk 0:02:58.5]}
7. Bb3 {[%clk 0:01:19.1]} 7... d6 {[%clk 0:02:59.1]} 8. c3 {[%clk 0:01:17.5]}
8... O-O {[%clk 0:02:59.4]} 9. h3 {[%clk 0:01:17.8]} 9... Bb7 {[%clk 0:02:59.6]}
10. d4 {[%clk 0:01:17.2]} 10... Re8 {[%clk 0:02:59.7]} 11. Nbd2 {[%clk
0:01:16.5]} 11... Bf8 {[%clk 0:02:59.5]} 12. a3 {[%clk 0:01:14.2]} 12... h6
{[%clk 0:02:57.6]} 13. Bc2 {[%clk 0:01:12.2]} 13... g6 {[%clk 0:02:53.6]} 14.
Nf1 {[%clk 0:01:10.7]} 14... Nb8 {[%clk 0:02:47.7]} 15. Ng3 {[%clk 0:01:03.8]}
15... Nbd7 {[%clk 0:02:47.3]} 16. h4 {[%clk 0:01:04.2]} 16... Bg7 {[%clk
0:02:39.9]} 17. h5 {[%clk 0:01:04.5]} 17... g5 {[%clk 0:02:04.4]} 18. Nf5 {[%clk
0:01:01.5]} 18... exd4 {[%clk 0:02:00.3]} 19. cxd4 {[%clk 0:00:39.8]} 19... Bxe4
{[%clk 0:01:54.9]} 20. Bxe4 {[%clk 0:00:38.3]} 20... Nxe4 {[%clk 0:01:55.8]} 21.
d5 {[%clk 0:00:34.6]} 21... Ndf6 {[%clk 0:01:23.4]} 22. Nxg7 {[%clk 0:00:33.3]}
22... Kxg7 {[%clk 0:01:23.4]} 23. Qd4 {[%clk 0:00:32.4]} 23... Qd7 {[%clk
0:01:14.7]} 24. Nh2 {[%clk 0:00:24.1]} 24... Qf5 {[%clk 0:01:08.3]} 25. f3
{[%clk 0:00:23.8]} 25... Ng3 {[%clk 0:00:58.8]} 26. Be3 {[%clk 0:00:09.1]} 26...
Qxd5 {[%clk 0:00:37.8]} 27. Qc3 {[%clk 0:00:09.1]} 27... c5 {[%clk 0:00:28.6]}
28. Ng4 {[%clk 0:00:08.4]} 28... Nxh5 {[%clk 0:00:26.9]} 29. b4 {[%clk
0:00:08.5]} 29... Qc4 {[%clk 0:00:23.3]} 30. Qb2 {[%clk 0:00:07.6]} 30... Kg6
{[%clk 0:00:21.6]} 31. bxc5 {[%clk 0:00:07.5]} 31... dxc5 {[%clk 0:00:21.2]} 32.
Rac1 {[%clk 0:00:07]} 32... Qd3 {[%clk 0:00:19.8]} 33. Ne5+ {[%clk 0:00:06.2]}
33... Rxe5 {[%clk 0:00:19]} 34. Qxe5 {[%clk 0:00:07.1]} 34... Rd8 {[%clk
0:00:18.5]} 35. Qxc5 {[%clk 0:00:06.7]} 35... Rd5 {[%clk 0:00:16.9]} 36. Qb6
{[%clk 0:00:06.4]} 36... Ng3 {[%clk 0:00:15.9]} 37. Bf2 {[%clk 0:00:03.4]} 37...
Ne2+ {[%clk 0:00:15.4]} 38. Rxe2 {[%clk 0:00:03.8]} 38... Qxe2 {[%clk
0:00:16.2]} 39. Bd4 {[%clk 0:00:03.7]} 39... Rf5 {[%clk 0:00:15.9]} 40. Rc6
{[%clk 0:00:03.2]} 40... Qe1+ {[%clk 0:00:15.6]} 41. Kh2 {[%clk 0:00:03.6]}
41... Qh4+ {[%clk 0:00:16.2]} 42. Kg1 {[%clk 0:00:03.8]} 42... Qe1+ {[%clk
0:00:16]} 43. Kh2 {[%clk 0:00:04.3]} 43... Qh4+ {[%clk 0:00:16]} 44. Kg1 {[%clk
0:00:04.7]} 44... g4 {[%clk 0:00:16.1]} 45. fxg4 {[%clk 0:00:02]} 45... Rf4
{[%clk 0:00:14.9]} 46. Bxf6 {[%clk 0:00:01.7]} 46... Rxf6 {[%clk 0:00:14.3]} 0-1